[Event "Pan-American U20-ch 2023"]
[Site "Volta Redonda"]
[Date "2023.11.07"]
[Round "2.1"]
[White "Flores Quillas, Diego Saul Rodri"]
[Black "Ibarra, Juan Martin"]
[Result "1/2-1/2"]
[ECO "B67"]
[WhiteElo "2369"]
[BlackElo "2219"]
[Annotator "RC"]
[PlyCount "223"]
[EventDate "2023.10.31"]
[EventType "swiss"]
[EventCountry "BRA"]
[SourceTitle "playchess.com"]
[Source "ChessBase"]
[SourceQuality "1"]
[TimeControl "5400+30"]

1. e4 {[%emt 0:19:18]} c5 {[%emt 0:00:11]} 2. Nf3 {[%emt 0:00:05]} d6 {[%emt 0:00:05]} 3. d4 {[%emt 0:00:04]} cxd4 {[%emt 0:00:06]} 4. Nxd4 {[%emt 0:00:04]} Nf6 {[%emt 0:00:06]} 5. Nc3 {[%emt 0:00:04]} Nc6 {[%emt 0:05:40]} 6. Bg5 {[%emt 0:00:10]} e6 {[%emt 0:00:14]} 7. Qd2 {[%emt 0:00:06]} a6 {[%emt 0:01:29]} 8. O-O-O {[%emt 0:01:12]} Bd7 {[%emt 0:01:26]} 9. f4 {[%emt 0:00:38]} b5 {[%emt 0:04:08]} 10. Nxc6 {[%emt 0:10:22]} Bxc6 {[%emt 0:00:20]} 11. Qe3 {[%emt 0:00:07]} Be7 {[%emt 0:14:55]} 12. Bxf6 {[%emt 0:09:08]} gxf6 {[%emt 0:01:41]} 13. Bd3 {[%emt 0:00:28]} Qc7 {[%emt 0:07:41]} 14. f5 {[%emt 0:00:37]} O-O-O {[%emt 0:03:51]} 15. Rhe1 {[%emt 0:02:28]} Kb8 {[%emt 0:05:11]} 16. Qh3 {[%emt 0:00:31]} b4 {[%emt 0:01:56]} 17. Nb1 {[%emt 0:02:02]} d5 {[%emt 0:08:40]} 18. Nd2 {[%emt 0:03:18]} e5 {[%emt 0:02:18]} 19. Kb1 {[%emt 0:01:52]} Qb7 {[%emt 0:05:06]} 20. Qh5 {[%emt 0:00:58]} Rhg8 {[%emt 0:02:14]} 21. g3 {[%emt 0:08:25]} dxe4 {[%emt 0:08:02]} 22. Nxe4 {[%emt 0:00:20]} Rd4 {[%emt 0:02:22]} 23. Qxf7 {[%emt 0:01:59]} Rgd8 {[%emt 0:01:37]} 24. Nf2 {[%emt 0:04:50]} Bf3 {[%emt 0:09:35]} 25. Rc1 {[%emt 0:00:23]} R8d7 {[%emt 0:02:23]} 26. Qxh7 {[%emt 0:04:20]} a5 {[%emt 0:01:19]} 27. Qh6 {[%emt 0:03:07]} a4 {[%emt 0:00:50]} 28. Qe3 {[%emt 0:01:10]} b3 {[%emt 0:06:15]} 29. cxb3 {[%emt 0:04:27]} Bb4 {[%emt 0:01:28]} 30. Rc3 {[%emt 0:08:37]} Bxc3 {[%emt 0:01:14]} 31. bxc3 {[%emt 0:00:02]} R4d6 {[%emt 0:01:23]} 32. b4 {[%emt 0:00:11]} Qc6 {[%emt 0:01:37]} 33. Bc2 {[%emt 0:09:35]} Rd2 {[%emt 0:00:34]} 34. Kc1 {[%emt 0:02:24]} a3 {[%emt 0:00:58]} 35. Qxd2 {[%emt 0:02:52]} Rxd2 {[%emt 0:00:01]} 36. Kxd2 {[%emt 0:00:01]} Qd5+ {[%emt 0:00:01]} 37. Ke3 {[%emt 0:00:01]} Qxa2 {[%emt 0:00:37]} 38. Bb1 {[%emt 0:00:04]} Qd5 {[%emt 0:01:22]} 39. c4 {[%emt 0:00:03]} Qxc4 {[%emt 0:00:31]} 40. Kxf3 {[%emt 0:00:02]} Qxb4 {[%emt 0:00:01]} 41. Rd1 {[%emt 0:00:35]} e4+ {[%emt 0:01:00]} 42. Nxe4 {[%emt 0:01:30]} Qb3+ {[%emt 0:00:28]} 43. Ke2 {[%emt 0:01:55]} Qb2+ {[%emt 0:00:22]} 44. Nd2 {[%emt 0:00:57]} Qb5+ {[%emt 0:00:33]} 45. Kf2 {[%emt 0:00:51]} Qc5+ {[%emt 0:00:19]} 46. Kf3 {[%emt 0:00:22]} Qc3+ {[%emt 0:00:39]} 47. Ke2 {[%emt 0:00:51]} Qe5+ {[%emt 0:00:15]} 48. Kf3 {[%emt 0:00:20]} Qc3+ {[%emt 0:00:01]} 49. Ke2 {[%emt 0:00:43]} Qe5+ {[%emt 0:00:13]} 50. Kf3 {[%emt 0:00:12]} Qc3+ {[%emt 0:00:19]} 51. Kg2 {[%emt 0:00:39]} Qe3 {[%emt 0:00:11]} 52. Kf1 {[%emt 0:00:01]} Ka7 {[%emt 0:01:19]} 53. Ne4 {[%emt 0:00:06]} a2 {[%emt 0:00:51]} 54. Bxa2 {[%emt 0:00:29]} Qxe4 {[%emt 0:00:01]} 55. Bd5 {[%emt 0:00:26]} Qxf5+ {[%emt 0:00:07]} 56. Kg1 {[%emt 0:00:04]} Qe5 {[%emt 0:01:17]} 57. Bg2 {[%emt 0:01:16]} Kb6 {[%emt 0:00:37]} 58. Rf1 {[%emt 0:00:06]} Kc5 {[%emt 0:00:34]} 59. Rf3 {[%emt 0:00:08]} Qa1+ {[%emt 0:00:22]} 60. Bf1 {[%emt 0:00:45]} Qd4+ {[%emt 0:00:32]} 61. Kg2 {[%emt 0:00:13]} Qd2+ {[%emt 0:00:14]} 62. Rf2 {[%emt 0:00:01]} Qd5+ {[%emt 0:00:06]} 63. Kg1 {[%emt 0:00:02]} Qd4 {[%emt 0:00:15]} 64. h4 {[%emt 0:00:08]} Kd6 {[%emt 0:01:34]} 65. Kg2 {[%emt 0:00:04]} Qe4+ {[%emt 0:00:31]} 66. Kh2 {[%emt 0:00:05]} Qd4 {[%emt 0:00:39]} 67. Rf4 {[%emt 0:00:04]} Qd2+ {[%emt 0:00:33]} 68. Bg2 {[%emt 0:00:47]} Ke7 {[%emt 0:00:33]} 69. Kh3 {[%emt 0:00:46]} Kf7 {[%emt 0:00:34]} 70. Be4 {[%emt 0:00:29]} Qd1 {[%emt 0:00:27]} 71. Bf3 {[%emt 0:02:38]} Qd7+ {[%emt 0:00:21]} 72. Bg4 {[%emt 0:00:17]} Qd5 {[%emt 0:00:11]} 73. Rf3 {[%emt 0:00:03]} Kg7 {[%emt 0:00:11]} 74. h5 {[%emt 0:00:14]} f5 {[%emt 0:00:26]} 75. Kh4 {[%emt 0:00:48]} Qd8+ {[%emt 0:01:00]} 76. Kh3 {[%emt 0:00:02]} Qd5 {[%emt 0:00:05]} 77. Kh4 {[%emt 0:00:10]} Qd8+ {[%emt 0:00:56]} 78. Kh3 {[%emt 0:00:03]} Qd1 {[%emt 0:00:52]} 79. Kh4 {[%emt 0:00:16]} fxg4 {[%emt 0:00:27]} 80. Rf4 {[%emt 0:01:16]} Qd8+ {[%emt 0:00:34]} 81. Kxg4 {[%emt 0:00:04]} Kh6 {[%emt 0:00:04]} 82. Rf5 {[%emt 0:00:15]} Qd1+ {[%emt 0:00:13]} 83. Kf4 {[%emt 0:00:28]} Qe2 {[%emt 0:01:06]} 84. g4 {[%emt 0:00:37]} Qf2+ {[%emt 0:00:06]} 85. Ke4 {[%emt 0:00:01]} Qg2+ {[%emt 0:00:12]} 86. Kf4 {[%emt 0:00:05]} Qf2+ {[%emt 0:01:04]} 87. Ke4 {[%emt 0:00:01]} Qh4 {[%emt 0:00:42]} 88. Kf4 {[%emt 0:00:25]} Qe7 {[%emt 0:00:26]} 89. Kf3 {[%emt 0:00:16]} Qa3+ {[%emt 0:00:05]} 90. Kf4 {[%emt 0:00:05]} Qb4+ {[%emt 0:00:20]} 91. Kf3 {[%emt 0:00:08]} Qc3+ {[%emt 0:00:04]} 92. Kf4 {[%emt 0:00:03]} Kg7 {[%emt 0:00:51]} 93. Rg5+ {[%emt 0:01:13]} Kf6 {[%emt 0:00:11]} 94. Rg6+ {[%emt 0:00:05]} Kf7 {[%emt 0:00:05]} 95. Kg5 {[%emt 0:00:12]} Qe3+ {[%emt 0:00:49]} 96. Kh4 {[%emt 0:00:02]} Qe1+ {[%emt 0:00:11]} 97. Kg5 {[%emt 0:00:05]} Qf2 {[%emt 0:01:06]} 98. Kh6 {[%emt 0:00:57]} Qf4+ {[%emt 0:01:06]} 99. Kh7 {[%emt 0:00:02]} Qe4 {[%emt 0:00:35]} 100. Kh6 {[%emt 0:00:02]} Qe5 {[%emt 0:00:31]} 101. Kh7 {[%emt 0:00:11]} Qe4 {[%emt 0:00:33]} 102. Kh6 {[%emt 0:00:02]} Qd4 {[%emt 0:00:24]} 103. Kh7 {[%emt 0:00:03]} Qe5 {[%emt 0:00:47]} 104. Kh6 {[%emt 0:00:39]} Qh8+ {[%emt 0:00:09]} 105. Kg5 {[%emt 0:00:02]} Qe5+ {[%emt 0:00:38]} 106. Kh6 {[%emt 0:00:01]} Qh8+ {[%emt 0:00:16]} 107. Kg5 {[%emt 0:00:02]} Qd8+ {[%emt 0:00:27]} 108. Kh6 {[%emt 0:00:07]} Qh8+ {[%emt 0:00:47]} 109. Kg5 {[%emt 0:00:02]} Ke7 {[%emt 0:00:19]} 110. Kf5 {[%emt 0:01:58]} Qh7 {[%emt 0:00:35]} 111. Kg5 {[%emt 0:00:07]} Qf7 {[%emt 0:00:17]} 112. Kh6 {[%emt 0:00:48]} 1/2-1/2

[Event "Pan-American U20-ch 2023"]
[Site "Volta Redonda"]
[Date "2023.11.06"]
[Round "2.2"]
[White "Soriano Quispe, Ivan Excender"]
[Black "Sathish, Pranav"]
[Result "1-0"]
[ECO "A88"]
[WhiteElo "2214"]
[BlackElo "2415"]
[Annotator "RC"]
[PlyCount "53"]
[EventDate "2023.10.31"]
[EventType "swiss"]
[EventCountry "BRA"]
[SourceTitle "playchess.com"]
[Source "ChessBase"]
[SourceQuality "1"]
[TimeControl "5400+30"]

1. d4 {[%emt 0:00:14]} f5 {[%emt 0:00:03]} 2. Nf3 {[%emt 0:01:23]} Nf6 {[%emt 0:00:33]} 3. c4 {[%emt 0:00:20]} g6 {[%emt 0:00:04]} 4. g3 {[%emt 0:00:17]} Bg7 {[%emt 0:00:04]} 5. Bg2 {[%emt 0:00:08]} O-O {[%emt 0:00:13]} 6. O-O {[%emt 0:00:07]} d6 {[%emt 0:00:02]} 7. Nc3 {[%emt 0:01:18]} c6 {[%emt 0:00:23]} 8. Qc2 {[%emt 0:02:48]} Na6 {[%emt 0:07:53]} 9. a3 {[%emt 0:02:12]} Qe8 {[%emt 0:03:56]} 10. b4 {[%emt 0:16:39]} e5 {[%emt 0:02:00]} 11. e3 {[%emt 0:00:25]} Be6 {[%emt 0:11:07]} 12. dxe5 {[%emt 0:14:24]} dxe5 {[%emt 0:00:17]} 13. Nxe5 {[%emt 0:02:35]} Nh5 {[%emt 0:00:48]} 14. f4 {[%emt 0:01:04]} Bxe5 {[%emt 0:00:37]} 15. fxe5 {[%emt 0:00:03]} Bxc4 {[%emt 0:00:28]} 16. Ne2 {[%emt 0:03:36]} Bxe2 {[%emt 0:01:52]} 17. Qxe2 {[%emt 0:04:18]} Qxe5 {[%emt 0:00:24]} 18. Bb2 {[%emt 0:02:19]} Qe6 {[%emt 0:00:32]} 19. Qd2 {[%emt 0:09:42]} Nf6 {[%emt 0:03:51]} 20. Qc3 {[%emt 0:00:55]} Nc7 {[%emt 0:02:30]} 21. e4 {[%emt 0:03:48]} Nb5 {[%emt 0:00:37]} 22. exf5 {[%emt 0:00:29]} gxf5 {[%emt 0:02:11]} 23. Qd2 {[%emt 0:02:08]} Ne4 {[%emt 0:00:51]} 24. Bxe4 {[%emt 0:00:48]} fxe4 {[%emt 0:00:23]} 25. Qg5+ {[%emt 0:00:11]} Qg6 {[%emt 0:00:14]} 26. Qe5 {[%emt 0:00:23]} Rxf1+ {[%emt 0:00:41]} 27. Rxf1 {[%emt 0:00:07]} 1-0

[Event "Pan-American U20-ch 2023"]
[Site "Volta Redonda"]
[Date "2023.11.07"]
[Round "2.3"]
[White "De Siqueira, Luigy Lira"]
[Black "Oro, Faustino"]
[Result "1/2-1/2"]
[ECO "C45"]
[WhiteElo "2179"]
[BlackElo "2356"]
[Annotator "RC"]
[PlyCount "87"]
[EventDate "2023.10.31"]
[EventType "swiss"]
[EventCountry "BRA"]
[SourceTitle "playchess.com"]
[Source "ChessBase"]
[SourceQuality "1"]
[TimeControl "5400+30"]

1. e4 {[%emt 0:07:39]} e5 {[%emt 0:00:11]} 2. Nf3 {[%emt 0:00:41]} Nc6 {[%emt 0:00:08]} 3. d4 {[%emt 0:00:09]} exd4 {[%emt 0:00:07]} 4. Nxd4 {[%emt 0:00:09]} Bc5 {[%emt 0:00:05]} 5. Be3 {[%emt 0:00:22]} Qf6 {[%emt 0:00:05]} 6. c3 {[%emt 0:00:34]} Nge7 {[%emt 0:00:08]} 7. Bc4 {[%emt 0:00:21]} b6 {[%emt 0:00:09]} 8. O-O {[%emt 0:00:14]} Bb7 {[%emt 0:00:09]} 9. Nb3 {[%emt 0:00:28]} Ne5 {[%emt 0:00:13]} 10. Nxc5 {[%emt 0:00:27]} bxc5 {[%emt 0:00:07]} 11. Nd2 {[%emt 0:27:21]} Nxc4 {[%emt 0:09:42]} 12. Nxc4 {[%emt 0:00:07]} Ba6 {[%emt 0:08:46]} 13. b3 {[%emt 0:09:07]} Bxc4 {[%emt 0:01:37]} 14. bxc4 {[%emt 0:00:06]} Qc6 {[%emt 0:00:23]} 15. Qg4 {[%emt 0:05:29]} Ng6 {[%emt 0:06:01]} 16. Rad1 {[%emt 0:06:58]} d6 {[%emt 0:02:35]} 17. Rd5 {[%emt 0:04:20]} O-O {[%emt 1:08:34]} 18. f4 {[%emt 0:04:18]} Rfe8 {[%emt 0:00:00]} 19. Qf3 {[%emt 0:10:43]} Nh4 {[%emt 0:00:00]} 20. Qh3 {[%emt 0:05:37]} Rxe4 {[%emt 0:00:00]} 21. Bc1 {[%emt 0:07:51]} Rxc4 {[%emt 0:00:00]} 22. Rh5 {[%emt 0:00:40]} Qxg2+ {[%emt 0:00:00]} 23. Qxg2 {[%emt 0:00:07]} Nxg2 {[%emt 0:00:00]} 24. Kxg2 {[%emt 0:00:50]} Rxc3 {[%emt 0:00:00]} 25. Rd5 {[%emt 0:00:21]} Re8 {[%emt 0:00:00]} 26. Rd2 {[%emt 0:00:22]} Kf8 {[%emt 0:00:00]} 27. Kf2 {[%emt 0:03:49]} f6 {[%emt 0:00:00]} 28. Rg1 {[%emt 0:00:25]} Kf7 {[%emt 0:00:00]} 29. Rgd1 {[%emt 0:01:53]} Rb8 {[%emt 0:00:00]} 30. Bb2 {[%emt 0:01:08]} Rc4 {[%emt 0:00:00]} 31. Kg3 {[%emt 0:00:13]} Rbb4 {[%emt 0:00:00]} 32. Rf2 {[%emt 0:00:21]} Re4 {[%emt 0:00:00]} 33. Rd3 {[%emt 0:00:09]} Ke6 {[%emt 0:00:00]} 34. h3 {[%emt 0:01:19]} Ra4 {[%emt 0:00:00]} 35. a3 {[%emt 0:00:44]} Re1 {[%emt 0:00:00]} 36. Kg2 {[%emt 0:01:11]} Ree4 {[%emt 0:00:00]} 37. Kg3 {[%emt 0:01:18]} c4 {[%emt 0:00:00]} 38. Rc3 {[%emt 0:00:14]} d5 {[%emt 0:00:00]} 39. Rfc2 {[%emt 0:00:28]} d4 {[%emt 0:00:00]} 40. Rxc4 {[%emt 0:00:08]} Rxc4 {[%emt 0:00:00]} 41. Rxc4 {[%emt 0:00:01]} Re3+ {[%emt 0:00:00]} 42. Kf2 {[%emt 0:00:08]} Rxh3 {[%emt 0:00:00]} 43. Bxd4 {[%emt 0:00:14]} Rxa3 {[%emt 0:00:47]} 44. Rxc7 {[%emt 0:00:07]} 1/2-1/2

[Event "Pan-American U20-ch 2023"]
[Site "Volta Redonda"]
[Date "2023.11.07"]
[Round "2.4"]
[White "Ribeiro, Matheus Mendes Domin"]
[Black "Filgueiras, Nathan Felipe"]
[Result "1/2-1/2"]
[ECO "E18"]
[WhiteElo "2150"]
[BlackElo "2331"]
[Annotator "RC"]
[PlyCount "59"]
[EventDate "2023.10.31"]
[EventType "swiss"]
[EventCountry "BRA"]
[SourceTitle "playchess.com"]
[Source "ChessBase"]
[SourceQuality "1"]
[TimeControl "5400+30"]

1. c4 {[%emt 0:00:02]} b6 {[%emt 0:06:58]} 2. Nf3 {[%emt 0:03:51]} Bb7 {[%emt 0:01:35]} 3. Nc3 {[%emt 0:00:58]} Nf6 {[%emt 0:00:52]} 4. g3 {[%emt 0:01:04]} e6 {[%emt 0:00:32]} 5. Bg2 {[%emt 0:00:32]} Be7 {[%emt 0:00:03]} 6. O-O {[%emt 0:00:13]} O-O {[%emt 0:00:04]} 7. d4 {[%emt 0:00:10]} Ne4 {[%emt 0:00:06]} 8. Bd2 {[%emt 0:00:47]} d5 {[%emt 0:02:30]} 9. Qc2 {[%emt 0:09:31]} Nd7 {[%emt 0:15:53]} 10. cxd5 {[%emt 0:15:43]} exd5 {[%emt 0:02:44]} 11. Bf4 {[%emt 0:06:12]} c5 {[%emt 0:06:36]} 12. Nxe4 {[%emt 0:10:16]} dxe4 {[%emt 0:00:15]} 13. Nd2 {[%emt 0:00:55]} cxd4 {[%emt 0:09:46]} 14. Nxe4 {[%emt 0:01:38]} Rc8 {[%emt 0:03:05]} 15. Qd3 {[%emt 0:07:29]} Nc5 {[%emt 0:03:13]} 16. Nxc5 {[%emt 0:00:40]} Bxg2 {[%emt 0:00:03]} 17. Kxg2 {[%emt 0:04:00]} bxc5 {[%emt 0:02:35]} 18. b3 {[%emt 0:00:38]} Bf6 {[%emt 0:08:59]} 19. Rac1 {[%emt 0:01:22]} Re8 {[%emt 0:00:08]} 20. Rc2 {[%emt 0:02:15]} Qe7 {[%emt 0:06:50]} 21. Rfc1 {[%emt 0:02:22]} h6 {[%emt 0:01:54]} 22. Qf3 {[%emt 0:02:31]} a5 {[%emt 0:02:47]} 23. h4 {[%emt 0:06:58]} Be5 {[%emt 0:04:07]} 24. Bxe5 {[%emt 0:02:04]} Qxe5 {[%emt 0:00:02]} 25. Qf4 {[%emt 0:01:23]} Qd5+ {[%emt 0:01:24]} 26. Qf3 {[%emt 0:00:18]} Qd6 {[%emt 0:01:56]} 27. Qf5 {[%emt 0:01:24]} g6 {[%emt 0:01:24]} 28. Qf4 {[%emt 0:00:32]} Qd5+ {[%emt 0:00:43]} 29. Qf3 {[%emt 0:00:08]} Qe5 {[%emt 0:01:24]} 30. Qf4 {[%emt 0:19:34]} 1/2-1/2

[Event "Pan-American U20-ch 2023"]
[Site "Volta Redonda"]
[Date "2023.11.07"]
[Round "2.5"]
[White "Tomiello, Lucas Costamilan"]
[Black "Castro Salgado, Pablo"]
[Result "0-1"]
[ECO "C27"]
[WhiteElo "2279"]
[BlackElo "2202"]
[Annotator "ChessBase"]
[PlyCount "108"]
[EventDate "2023.10.31"]
[EventType "swiss"]
[EventCountry "BRA"]
[SourceTitle "playchess.com"]
[Source "ChessBase"]
[SourceQuality "1"]
[TimeControl "5400+30"]

1. e4 {[%emt 0:00:05]} e5 {[%emt 0:01:22]} 2. Bc4 {[%emt 0:00:17]} Nf6 {[%emt 0:00:05]} 3. d3 {[%emt 0:00:17]} Bc5 {[%emt 0:00:10]} 4. Nc3 {[%emt 0:00:40]} c6 {[%emt 0:00:59]} 5. Nf3 {[%emt 0:00:57]} d6 {[%emt 0:00:19]} 6. Be3 {[%emt 0:08:26]} Bxe3 {[%emt 0:08:01]} 7. fxe3 {[%emt 0:00:06]} Ng4 {[%emt 0:03:56]} 8. Qe2 {[%emt 0:02:32]} Qb6 {[%emt 0:06:13]} 9. Ng5 {[%emt 0:06:11]} O-O {[%emt 0:24:49]} 10. O-O {[%emt 0:13:19]} Qxe3+ {[%emt 0:08:21]} 11. Qxe3 {[%emt 0:00:48]} Nxe3 {[%emt 0:00:04]} 12. Bxf7+ {[%emt 0:07:12]} Kh8 {[%emt 0:01:29]} 13. Rf3 {[%emt 0:08:24]} Nxc2 {[%emt 0:20:09]} 14. Raf1 {[%emt 0:02:15]} Nd4 {[%emt 0:00:06]} 15. R3f2 {[%emt 0:01:25]} Nd7 {[%emt 0:00:48]} 16. Bc4 {[%emt 0:04:55]} Rxf2 {[%emt 0:00:08]} 17. Rxf2 {[%emt 0:00:08]} h6 {[%emt 0:00:10]} 18. Nf7+ {[%emt 0:01:30]} Kh7 {[%emt 0:00:05]} 19. Nxd6 {[%emt 0:01:15]} b5 {[%emt 0:00:12]} 20. Bf7 {[%emt 0:02:53]} a5 {[%emt 0:06:47]} 21. Ne2 {[%emt 0:09:24]} Ba6 {[%emt 0:02:59]} 22. Nxd4 {[%emt 0:04:04]} exd4 {[%emt 0:00:04]} 23. Be8 {[%emt 0:04:45]} Rd8 {[%emt 0:03:25]} 24. Bxd7 {[%emt 0:03:33]} Rxd7 {[%emt 0:00:01]} 25. e5 {[%emt 0:00:53]} c5 {[%emt 0:04:22]} 26. b3 {[%emt 0:02:41]} Re7 {[%emt 0:01:54]} 27. Rf8 {[%emt 0:08:58]} b4 {[%emt 0:03:18]} 28. Nc4 {[%emt 0:00:37]} Bxc4 {[%emt 0:01:01]} 29. bxc4 {[%emt 0:00:03]} a4 {[%emt 0:00:29]} 30. Ra8 {[%emt 0:02:09]} a3 {[%emt 0:00:13]} 31. Ra5 {[%emt 0:00:36]} Rxe5 {[%emt 0:00:05]} 32. Kf2 {[%emt 0:00:17]} Kg6 {[%emt 0:00:40]} 33. Rb5 {[%emt 0:00:32]} Kf5 {[%emt 0:00:21]} 34. Ra5 {[%emt 0:00:32]} h5 {[%emt 0:00:30]} 35. Ra7 {[%emt 0:01:10]} g6 {[%emt 0:00:27]} 36. Rc7 {[%emt 0:00:26]} Kf4 {[%emt 0:01:17]} 37. Rc6 {[%emt 0:01:33]} Kf5 {[%emt 0:01:24]} 38. h4 {[%emt 0:01:02]} g5 {[%emt 0:00:25]} 39. hxg5 {[%emt 0:00:08]} Kxg5 {[%emt 0:00:04]} 40. Rc8 {[%emt 0:01:14]} Kf6 {[%emt 0:00:19]} 41. Rc6+ {[%emt 0:02:04]} Ke7 {[%emt 0:00:05]} 42. Rc7+ {[%emt 0:00:26]} Kd6 {[%emt 0:00:01]} 43. Rh7 {[%emt 0:00:13]} Kc6 {[%emt 0:01:58]} 44. Rh6+ {[%emt 0:00:21]} Kb7 {[%emt 0:00:16]} 45. Rh7+ {[%emt 0:00:01]} Ka6 {[%emt 0:00:23]} 46. Rh6+ {[%emt 0:01:01]} Ka5 {[%emt 0:00:06]} 47. Rh8 {[%emt 0:00:17]} Re3 {[%emt 0:01:55]} 48. Rxh5 {[%emt 0:00:12]} Rxd3 {[%emt 0:00:14]} 49. Ke2 {[%emt 0:01:15]} Rg3 {[%emt 0:00:11]} 50. Rxc5+ {[%emt 0:00:12]} Ka4 {[%emt 0:00:05]} 51. Rc8 {[%emt 0:00:46]} Rxg2+ {[%emt 0:00:27]} 52. Kd3 {[%emt 0:00:09]} Rxa2 {[%emt 0:00:06]} 53. Kxd4 {[%emt 0:00:58]} Kb3 {[%emt 0:00:18]} 54. c5 {[%emt 0:00:12]} Rd2+ {[%emt 0:00:04]} 0-1

[Event "Pan-American U20-ch 2023"]
[Site "Volta Redonda"]
[Date "2023.11.07"]
[Round "2.6"]
[White "Tomiello, Mateus Costamilan"]
[Black "Silva, Kaua Marques"]
[Result "1-0"]
[ECO "A36"]
[WhiteElo "2145"]
[BlackElo "2235"]
[Annotator "RC"]
[PlyCount "89"]
[EventDate "2023.10.31"]
[EventType "swiss"]
[EventCountry "BRA"]
[SourceTitle "playchess.com"]
[Source "ChessBase"]
[SourceQuality "1"]
[TimeControl "5400+30"]

1. c4 {[%emt 0:00:11]} c5 {[%emt 0:00:15]} 2. Nc3 {[%emt 0:00:46]} Nc6 {[%emt 0:01:36]} 3. g3 {[%emt 0:00:47]} g6 {[%emt 0:00:04]} 4. Bg2 {[%emt 0:00:29]} Bg7 {[%emt 0:00:04]} 5. e3 {[%emt 0:01:04]} e5 {[%emt 0:02:45]} 6. Nge2 {[%emt 0:01:08]} d6 {[%emt 0:01:10]} 7. O-O {[%emt 0:01:24]} Be6 {[%emt 0:00:03]} 8. d3 {[%emt 0:00:35]} Nge7 {[%emt 0:00:39]} 9. Nd5 {[%emt 0:04:15]} O-O {[%emt 0:00:25]} 10. a3 {[%emt 0:01:33]} a5 {[%emt 0:07:25]} 11. Nec3 {[%emt 0:01:06]} Rb8 {[%emt 0:01:16]} 12. Rb1 {[%emt 0:02:26]} b6 {[%emt 0:02:39]} 13. Bd2 {[%emt 0:06:27]} Qd7 {[%emt 0:07:20]} 14. b4 {[%emt 0:02:39]} axb4 {[%emt 0:01:38]} 15. axb4 {[%emt 0:02:00]} cxb4 {[%emt 0:03:07]} 16. Nb5 {[%emt 0:04:47]} Rfd8 {[%emt 0:07:26]} 17. e4 {[%emt 0:02:59]} Na7 {[%emt 0:14:50]} 18. Rxb4 {[%emt 0:03:05]} Nec6 {[%emt 0:07:30]} 19. Rb1 {[%emt 0:03:10]} Nxb5 {[%emt 0:04:23]} 20. Rxb5 {[%emt 0:00:52]} Bxd5 {[%emt 0:06:43]} 21. Rxd5 {[%emt 0:01:49]} b5 {[%emt 0:03:41]} 22. Bg5 {[%emt 0:10:50]} Re8 {[%emt 0:05:26]} 23. Qd2 {[%emt 0:08:30]} Nd4 {[%emt 0:02:43]} 24. c5 {[%emt 0:03:45]} Bf8 {[%emt 0:03:06]} 25. Be3 {[%emt 0:04:45]} Ne6 {[%emt 0:03:12]} 26. Bh3 {[%emt 0:07:40]} Qc7 {[%emt 0:01:54]} 27. cxd6 {[%emt 0:01:30]} Bxd6 {[%emt 0:00:05]} 28. Rc1 {[%emt 0:00:48]} Qe7 {[%emt 0:01:01]} 29. Rc6 {[%emt 0:02:32]} Bb4 {[%emt 0:01:27]} 30. Qb2 {[%emt 0:02:55]} Nd8 {[%emt 0:06:40]} 31. Rb6 {[%emt 0:02:05]} Rxb6 {[%emt 0:00:59]} 32. Bxb6 {[%emt 0:00:08]} Nc6 {[%emt 0:02:58]} 33. Bd7 {[%emt 0:01:34]} Rb8 {[%emt 0:00:02]} 34. Bxc6 {[%emt 0:01:07]} Rxb6 {[%emt 0:00:04]} 35. Rxe5 {[%emt 0:00:58]} Qa7 {[%emt 0:01:19]} 36. Re8+ {[%emt 0:03:36]} Bf8 {[%emt 0:00:03]} 37. Qb4 {[%emt 0:01:39]} Qa1+ {[%emt 0:00:04]} 38. Kg2 {[%emt 0:00:07]} Qg7 {[%emt 0:00:03]} 39. Qc5 {[%emt 0:01:41]} Ra6 {[%emt 0:00:19]} 40. Bxb5 {[%emt 0:00:31]} Re6 {[%emt 0:01:17]} 41. Ra8 {[%emt 0:00:46]} h5 {[%emt 0:00:26]} 42. Bc4 {[%emt 0:00:57]} Rf6 {[%emt 0:00:10]} 43. h4 {[%emt 0:00:35]} Qh6 {[%emt 0:00:09]} 44. f4 {[%emt 0:00:42]} Qg7 {[%emt 0:00:25]} 45. d4 {[%emt 0:00:29]} 1-0

[Event "Pan-American U20-ch 2023"]
[Site "Volta Redonda"]
[Date "2023.11.07"]
[Round "3.1"]
[White "Reyes Zavaleta, Fabian Ricardo"]
[Black "Soriano Quispe, Ivan Excender"]
[Result "0-1"]
[ECO "D37"]
[WhiteElo "2122"]
[BlackElo "2214"]
[Annotator "RC"]
[PlyCount "78"]
[EventDate "2023.10.31"]
[EventType "swiss"]
[EventCountry "BRA"]
[SourceTitle "playchess.com"]
[Source "ChessBase"]
[SourceQuality "1"]
[TimeControl "5400+30"]

1. d4 {[%emt 0:04:02]} d5 {[%emt 0:00:08]} 2. c4 {[%emt 0:00:10]} e6 {[%emt 0:00:06]} 3. Nf3 {[%emt 0:00:31]} a6 {[%emt 0:00:08]} 4. cxd5 {[%emt 0:02:34]} exd5 {[%emt 0:00:43]} 5. Nc3 {[%emt 0:00:29]} Nf6 {[%emt 0:00:06]} 6. Bg5 {[%emt 0:00:36]} Be6 {[%emt 0:00:24]} 7. e3 {[%emt 0:00:36]} Nbd7 {[%emt 0:02:00]} 8. Bd3 {[%emt 0:04:38]} Bd6 {[%emt 0:00:38]} 9. O-O {[%emt 0:01:34]} O-O {[%emt 0:00:10]} 10. Qc2 {[%emt 0:03:30]} h6 {[%emt 0:00:15]} 11. Bh4 {[%emt 0:00:07]} c5 {[%emt 0:00:23]} 12. dxc5 {[%emt 0:05:33]} Nxc5 {[%emt 0:00:57]} 13. Rad1 {[%emt 0:01:42]} Rc8 {[%emt 0:06:21]} 14. Qb1 {[%emt 0:02:56]} b5 {[%emt 0:06:11]} 15. a3 {[%emt 0:03:54]} Nxd3 {[%emt 0:15:51]} 16. Qxd3 {[%emt 0:00:08]} Be7 {[%emt 0:00:29]} 17. Nd4 {[%emt 0:10:45]} Qd7 {[%emt 0:03:53]} 18. f4 {[%emt 0:19:08]} Qd6 {[%emt 0:06:45]} 19. Nf5 {[%emt 0:03:49]} Bxf5 {[%emt 0:00:07]} 20. Qxf5 {[%emt 0:00:02]} Qe6 {[%emt 0:05:50]} 21. Qxe6 {[%emt 0:00:47]} fxe6 {[%emt 0:00:06]} 22. f5 {[%emt 0:00:17]} g5 {[%emt 0:03:50]} 23. fxg6 {[%emt 0:03:27]} Kg7 {[%emt 0:00:31]} 24. Ne2 {[%emt 0:21:29]} Bc5 {[%emt 0:46:38]} 25. Nd4 {[%emt 0:04:29]} Bxd4 {[%emt 0:00:00]} 26. exd4 {[%emt 0:01:01]} Ne4 {[%emt 0:00:00]} 27. Rxf8 {[%emt 0:00:10]} Kxf8 {[%emt 0:00:00]} 28. Be1 {[%emt 0:05:34]} Kg7 {[%emt 0:00:00]} 29. h4 {[%emt 0:00:27]} Kxg6 {[%emt 0:00:00]} 30. Bd2 {[%emt 0:00:34]} Rc2 {[%emt 0:00:00]} 31. Bf4 {[%emt 0:00:22]} Rxb2 {[%emt 0:00:00]} 32. Rc1 {[%emt 0:00:12]} h5 {[%emt 0:00:00]} 33. Rc6 {[%emt 0:00:44]} a5 {[%emt 0:00:00]} 34. Bc7 {[%emt 0:00:14]} b4 {[%emt 0:00:00]} 35. axb4 {[%emt 0:00:25]} axb4 {[%emt 0:00:00]} 36. Rxe6+ {[%emt 0:00:07]} Kf7 {[%emt 0:00:00]} 37. Re5 {[%emt 0:01:26]} Rc2 {[%emt 0:00:00]} 38. Bd8 {[%emt 0:00:29]} b3 {[%emt 0:00:00]} 39. Re7+ {[%emt 0:00:04]} Kf8 {[%emt 0:00:00]} 0-1